[Event "Reykjavik Open 2025"]
[Site "Reykjavik"]
[Date "2025.04.09"]
[Round "1.31"]
[White "Ravi Krishna G"]
[Black "Williams, Simon K"]
[Result "0-1"]
[Annotator "ChessBase"]
[ECO "A85"]
[WhiteElo "2100"]
[BlackElo "2451"]
[PlyCount "56"]
[EventDate "2025.04.09"]
[EventType "swiss"]
[EventCountry "ISL"]
[SourceTitle "playchess.com"]
[Source "ChessBase"]
[SourceQuality "1"]
[TimeControl "40/5400+30:1800+30"]

1. d4 {[%emt 0:00:12]} e6 {[%emt 0:01:18]} 2. c4 {[%emt 0:00:24]} f5 {[%emt 0:01:22]} 3. a3 {[%emt 0:00:55]} Nf6 {[%emt 0:00:34]} 4. Nc3 {[%emt 0:00:35]} Be7 {[%emt 0:06:54]} 5. Bf4 {[%emt 0:01:14]} O-O {[%emt 0:01:04]} 6. e3 {[%emt 0:03:08]} d6 {[%emt 0:01:58]} 7. Nf3 {[%emt 0:01:26]} Nc6 {[%emt 0:11:05]} 8. Be2 {[%emt 0:08:58]} Ne4 {[%emt 0:04:41]} 9. Nxe4 {[%emt 0:08:05]} fxe4 {[%emt 0:00:06]} 10. Nd2 {[%emt 0:00:46]} Nxd4 {[%emt 0:00:58]} 11. Nxe4 {[%emt 0:03:04]} Nxe2 {[%emt 0:06:29]} 12. Qxe2 {[%emt 0:00:09]} Qe8 {[%emt 0:06:21]} 13. Bg3 {[%emt 0:08:26]} b6 {[%emt 0:03:44]} 14. Nd2 {[%emt 0:11:08]} e5 {[%emt 0:08:38]} 15. Qd3 {[%emt 0:07:49]} Bb7 {[%emt 0:07:00]} 16. e4 {[%emt 0:06:06]} a5 {[%emt 0:00:53]} 17. a4 {[%emt 0:01:15]} Qg6 {[%emt 0:02:27]} 18. O-O {[%emt 0:05:38]} h5 {[%emt 0:02:17]} 19. f3 {[%emt 0:02:57]} Bg5 {[%emt 0:00:20]} 20. Bf2 {[%emt 0:04:33]} Bxd2 {[%emt 0:00:48]} 21. Qxd2 {[%emt 0:01:03]} Rxf3 {[%emt 0:00:12]} 22. Bg3 {[%emt 0:07:16]} Rxf1+ {[%emt 0:00:27]} 23. Rxf1 {[%emt 0:00:02]} Bxe4 {[%emt 0:01:43]} 24. b3 {[%emt 0:01:28]} Rf8 {[%emt 0:03:03]} 25. Re1 {[%emt 0:04:14]} Bc6 {[%emt 0:01:13]} 26. Re3 {[%emt 0:07:08]} Qf6 {[%emt 0:02:29]} 27. Re1 {[%emt 0:01:41]} h4 {[%emt 0:00:27]} 28. Bf2 {[%emt 0:00:35]} h3 {[%emt 0:00:09]} 0-1

[Event "Reykjavik Open 2025"]
[Site "Reykjavik"]
[Date "2025.04.09"]
[Round "1.32"]
[White "Brackmann, Hendrik"]
[Black "Kavutskiy, Kostya"]
[Result "0-1"]
[Annotator "ChessBase"]
[ECO "B86"]
[WhiteElo "2040"]
[BlackElo "2351"]
[PlyCount "66"]
[EventDate "2025.04.09"]
[EventType "swiss"]
[EventCountry "ISL"]
[SourceTitle "playchess.com"]
[Source "ChessBase"]
[SourceQuality "1"]
[TimeControl "40/5400+30:1800+30"]

1. e4 {[%emt 0:00:04]} c5 {[%emt 0:00:17]} 2. Nf3 {[%emt 0:00:09]} d6 {[%emt 0:00:16]} 3. d4 {[%emt 0:00:14]} cxd4 {[%emt 0:00:08]} 4. Nxd4 {[%emt 0:00:06]} Nf6 {[%emt 0:00:08]} 5. Nc3 {[%emt 0:00:04]} a6 {[%emt 0:00:09]} 6. Bc4 {[%emt 0:00:47]} e6 {[%emt 0:00:23]} 7. Be3 {[%emt 0:00:16]} Be7 {[%emt 0:05:43]} 8. Bb3 {[%emt 0:00:21]} b5 {[%emt 0:03:03]} 9. a3 {[%emt 0:00:47]} O-O {[%emt 0:03:38]} 10. g4 {[%emt 0:00:23]} Bb7 {[%emt 0:05:35]} 11. f3 {[%emt 0:01:22]} Nfd7 {[%emt 0:08:34]} 12. Qe2 {[%emt 0:07:39]} Nc6 {[%emt 0:14:39]} 13. O-O-O {[%emt 0:02:54]} Rc8 {[%emt 0:11:20]} 14. Kb1 {[%emt 0:04:19]} Nce5 {[%emt 0:04:51]} 15. Qe1 {[%emt 0:03:30]} Nc4 {[%emt 0:04:41]} 16. h4 {[%emt 0:06:40]} Nde5 {[%emt 0:09:07]} 17. Bc1 {[%emt 0:03:37]} Qc7 {[%emt 0:00:27]} 18. Nce2 {[%emt 0:07:24]} d5 {[%emt 0:01:33]} 19. Ng3 {[%emt 0:05:57]} dxe4 {[%emt 0:10:34]} 20. Nxe4 {[%emt 0:01:23]} Rfd8 {[%emt 0:00:18]} 21. Qe2 {[%emt 0:04:34]} Qb6 {[%emt 0:02:13]} 22. c3 {[%emt 0:03:05]} a5 {[%emt 0:01:48]} 23. Rhg1 {[%emt 0:12:29]} b4 {[%emt 0:01:21]} 24. axb4 {[%emt 0:05:01]} axb4 {[%emt 0:00:10]} 25. f4 {[%emt 0:00:04]} bxc3 {[%emt 0:00:51]} 26. Nxc3 {[%emt 0:08:08]} Rxd4 {[%emt 0:00:52]} 27. Rxd4 {[%emt 0:00:47]} Qxb3 {[%emt 0:02:07]} 28. fxe5 {[%emt 0:00:57]} Na3+ {[%emt 0:00:19]} 29. Ka1 {[%emt 0:00:07]} Nc2+ {[%emt 0:00:10]} 30. Kb1 {[%emt 0:01:51]} Nxd4 {[%emt 0:00:38]} 31. Qd1 {[%emt 0:02:41]} Rxc3 {[%emt 0:00:59]} 32. Qxd4 {[%emt 0:00:10]} Qc2+ {[%emt 0:00:13]} 33. Ka1 {[%emt 0:00:21]} Rc4 {[%emt 0:00:20]} 0-1

[Event "Reykjavik Open 2025"]
[Site "Reykjavik"]
[Date "2025.04.09"]
[Round "1.33"]
[White "Petersen, Marcel"]
[Black "Zhang, Ruijia"]
[Result "1-0"]
[Annotator "ChessBase"]
[ECO "C07"]
[WhiteElo "2185"]
[BlackElo "1973"]
[PlyCount "67"]
[EventDate "2025.04.09"]
[EventType "swiss"]
[EventCountry "ISL"]
[SourceTitle "playchess.com"]
[Source "ChessBase"]
[SourceQuality "1"]
[TimeControl "40/5400+30:1800+30"]

1. e4 {[%emt 0:00:03]} e6 {[%emt 0:00:09]} 2. d4 {[%emt 0:00:07]} d5 {[%emt 0:00:09]} 3. Nd2 {[%emt 0:00:32]} c5 {[%emt 0:00:24]} 4. Ngf3 {[%emt 0:00:20]} cxd4 {[%emt 0:01:37]} 5. Nxd4 {[%emt 0:00:13]} Nc6 {[%emt 0:00:16]} 6. Bb5 {[%emt 0:00:35]} Bd7 {[%emt 0:00:18]} 7. Nxc6 {[%emt 0:00:21]} bxc6 {[%emt 0:00:15]} 8. Bd3 {[%emt 0:00:06]} Bd6 {[%emt 0:00:40]} 9. Qe2 {[%emt 0:02:07]} Qc7 {[%emt 0:01:34]} 10. Nf3 {[%emt 0:03:50]} f6 {[%emt 0:04:02]} 11. c4 {[%emt 0:08:59]} Ne7 {[%emt 0:01:41]} 12. O-O {[%emt 0:05:04]} O-O {[%emt 0:01:03]} 13. h3 {[%emt 0:02:55]} dxe4 {[%emt 0:12:18]} 14. Qxe4 {[%emt 0:01:20]} Ng6 {[%emt 0:02:54]} 15. Re1 {[%emt 0:07:40]} f5 {[%emt 0:03:57]} 16. Qe2 {[%emt 0:01:18]} Nf4 {[%emt 0:10:26]} 17. Bxf4 {[%emt 0:00:56]} Bxf4 {[%emt 0:02:29]} 18. c5 {[%emt 0:00:07]} Rae8 {[%emt 0:08:03]} 19. Bc4 {[%emt 0:03:46]} Rf6 {[%emt 0:02:38]} 20. Rad1 {[%emt 0:04:22]} Kf8 {[%emt 0:09:04]} 21. Ne5 {[%emt 0:09:25]} Bxe5 {[%emt 0:00:56]} 22. Qxe5 {[%emt 0:00:09]} Qxe5 {[%emt 0:00:28]} 23. Rxe5 {[%emt 0:00:06]} Ke7 {[%emt 0:00:20]} 24. f4 {[%emt 0:00:57]} h6 {[%emt 0:00:32]} 25. Re3 {[%emt 0:05:05]} g5 {[%emt 0:02:38]} 26. fxg5 {[%emt 0:02:24]} hxg5 {[%emt 0:00:54]} 27. Rb3 {[%emt 0:00:05]} Bc8 {[%emt 0:11:11]} 28. Rb8 {[%emt 0:02:26]} e5 {[%emt 0:05:22]} 29. Ra8 {[%emt 0:01:03]} a6 {[%emt 0:05:53]} 30. Ra7+ {[%emt 0:00:07]} Kf8 {[%emt 0:00:07]} 31. Rd6 {[%emt 0:00:42]} Rxd6 {[%emt 0:00:37]} 32. Rf7+ {[%emt 0:00:06]} Kg8 {[%emt 0:00:15]} 33. cxd6 {[%emt 0:00:05]} Be6 {[%emt 0:01:17]} 34. Re7 {[%emt 0:00:14]} 1-0

[Event "Reykjavik Open 2025"]
[Site "Reykjavik"]
[Date "2025.04.09"]
[Round "1.34"]
[White "Saine, Zachary"]
[Black "Xu, Yuanyuan"]
[Result "0-1"]
[Annotator "ChessBase"]
[ECO "B12"]
[WhiteElo "2019"]
[BlackElo "2288"]
[PlyCount "84"]
[EventDate "2025.04.09"]
[EventType "swiss"]
[EventCountry "ISL"]
[SourceTitle "playchess.com"]
[Source "ChessBase"]
[SourceQuality "1"]
[TimeControl "40/5400+30:1800+30"]

1. e4 {[%emt 0:00:29]} c6 {[%emt 0:00:07]} 2. d4 {[%emt 0:00:15]} d5 {[%emt 0:00:09]} 3. e5 {[%emt 0:00:14]} Bf5 {[%emt 0:00:07]} 4. Nf3 {[%emt 0:00:07]} e6 {[%emt 0:00:11]} 5. Be2 {[%emt 0:00:08]} Nd7 {[%emt 0:05:41]} 6. O-O {[%emt 0:02:38]} h6 {[%emt 0:00:23]} 7. a4 {[%emt 0:02:13]} a5 {[%emt 0:04:20]} 8. Na3 {[%emt 0:04:38]} Ne7 {[%emt 0:04:41]} 9. c3 {[%emt 0:10:27]} Bg4 {[%emt 0:20:27]} 10. Nc2 {[%emt 0:03:35]} c5 {[%emt 0:07:24]} 11. Na3 {[%emt 0:13:27]} cxd4 {[%emt 0:05:57]} 12. Nxd4 {[%emt 0:05:18]} Bxe2 {[%emt 0:01:14]} 13. Qxe2 {[%emt 0:00:07]} Nc6 {[%emt 0:00:30]} 14. f4 {[%emt 0:08:20]} Nxd4 {[%emt 0:04:50]} 15. cxd4 {[%emt 0:00:49]} Bxa3 {[%emt 0:00:43]} 16. Rxa3 {[%emt 0:01:13]} Qb6 {[%emt 0:00:38]} 17. Be3 {[%emt 0:12:08]} Rc8 {[%emt 0:04:20]} 18. f5 {[%emt 0:04:33]} exf5 {[%emt 0:05:52]} 19. Rxf5 {[%emt 0:02:31]} Qg6 {[%emt 0:02:40]} 20. Rf1 {[%emt 0:04:09]} Rc2 {[%emt 0:03:41]} 21. Qf3 {[%emt 0:00:22]} Nb6 {[%emt 0:02:41]} 22. Rc3 {[%emt 0:13:20]} Rxc3 {[%emt 0:02:45]} 23. bxc3 {[%emt 0:00:05]} O-O {[%emt 0:00:10]} 24. Bc1 {[%emt 0:03:24]} Rd8 {[%emt 0:07:30]} 25. Qd1 {[%emt 0:00:54]} Qc6 {[%emt 0:01:36]} 26. Qg4 {[%emt 0:02:41]} Nd7 {[%emt 0:04:58]} 27. Rf3 {[%emt 0:01:26]} Qe6 {[%emt 0:01:26]} 28. Qh4 {[%emt 0:00:50]} Rc8 {[%emt 0:00:44]} 29. g4 {[%emt 0:02:42]} Rc4 {[%emt 0:04:17]} 30. Bf4 {[%emt 0:01:06]} Nf8 {[%emt 0:01:48]} 31. Bd2 {[%emt 0:01:02]} Rxa4 {[%emt 0:02:07]} 32. g5 {[%emt 0:00:21]} Ra1+ {[%emt 0:01:03]} 33. Kg2 {[%emt 0:00:07]} Ra2 {[%emt 0:00:13]} 34. Rf2 {[%emt 0:00:14]} Ng6 {[%emt 0:00:33]} 35. Qg3 {[%emt 0:00:51]} h5 {[%emt 0:00:23]} 36. h3 {[%emt 0:00:46]} a4 {[%emt 0:01:37]} 37. Qd3 {[%emt 0:00:44]} a3 {[%emt 0:00:24]} 38. Qb1 {[%emt 0:00:26]} Rb2 {[%emt 0:00:19]} 39. Qa1 {[%emt 0:00:33]} Qa6 {[%emt 0:00:46]} 40. Bc1 {[%emt 0:00:37]} Nh4+ {[%emt 0:00:17]} 41. Kg1 {[%emt 0:30:13]} Rb3 {[%emt 0:10:51]} 42. Kh2 {[%emt 0:00:00]} Qd3 {[%emt 0:03:30]} 0-1

[Event "Reykjavik Open 2025"]
[Site "Reykjavik"]
[Date "2025.04.09"]
[Round "1.35"]
[White "Hardwick, Hugo"]
[Black "Kadovic, Tamara"]
[Result "1-0"]
[Annotator "NA"]
[ECO "C63"]
[WhiteElo "1873"]
[BlackElo "1612"]
[PlyCount "71"]
[EventDate "2025.04.09"]
[EventType "swiss"]
[EventCountry "ISL"]
[SourceTitle "playchess.com"]
[Source "ChessBase"]
[SourceQuality "1"]
[TimeControl "40/5400+30:1800+30"]

1. e4 {[%emt 0:00:03]} e5 {[%emt 0:00:17]} 2. Nf3 {[%emt 0:00:06]} Nc6 {[%emt 0:00:31]} 3. Bb5 {[%emt 0:00:13]} f5 {[%emt 0:01:00]} 4. d3 {[%emt 0:03:45]} fxe4 {[%emt 0:00:48]} 5. dxe4 {[%emt 0:01:14]} Nf6 {[%emt 0:00:32]} 6. O-O {[%emt 0:08:55]} Bd6 {[%emt 0:06:36]} 7. Nc3 {[%emt 0:02:17]} O-O {[%emt 0:03:39]} 8. Bg5 {[%emt 0:03:38]} Qe8 {[%emt 0:02:43]} 9. Re1 {[%emt 0:09:20]} a6 {[%emt 0:07:02]} 10. Bc4+ {[%emt 0:04:39]} Kh8 {[%emt 0:01:02]} 11. Nd5 {[%emt 0:05:34]} b5 {[%emt 0:10:31]} 12. Bb3 {[%emt 0:05:31]} Na5 {[%emt 0:06:50]} 13. Nh4 {[%emt 0:23:11]} Nxb3 {[%emt 0:04:20]} 14. axb3 {[%emt 0:00:35]} Bb7 {[%emt 0:07:46]} 15. Nxf6 {[%emt 0:03:14]} gxf6 {[%emt 0:01:20]} 16. Bh6 {[%emt 0:00:27]} Rg8 {[%emt 0:03:24]} 17. Qf3 {[%emt 0:02:21]} Qf7 {[%emt 0:03:54]} 18. Nf5 {[%emt 0:00:52]} Bf8 {[%emt 0:03:22]} 19. Rad1 {[%emt 0:03:14]} Rg6 {[%emt 0:02:47]} 20. Qh3 {[%emt 0:06:17]} Bc6 {[%emt 0:07:18]} 21. Bxf8 {[%emt 0:03:05]} Rxf8 {[%emt 0:00:42]} 22. Rd3 {[%emt 0:02:23]} Rfg8 {[%emt 0:02:13]} 23. Rg3 {[%emt 0:03:25]} Rxg3 {[%emt 0:03:06]} 24. hxg3 {[%emt 0:00:42]} Rg5 {[%emt 0:01:59]} 25. g4 {[%emt 0:04:28]} d5 {[%emt 0:03:45]} 26. exd5 {[%emt 0:01:14]} Bxd5 {[%emt 0:01:07]} 27. Rd1 {[%emt 0:01:01]} Qg8 {[%emt 0:03:44]} 28. Ne7 {[%emt 0:00:40]} Qd8 {[%emt 0:02:16]} 29. Nxd5 {[%emt 0:00:15]} c6 {[%emt 0:03:10]} 30. Ne3 {[%emt 0:00:20]} Qg8 {[%emt 0:01:30]} 31. Qf3 {[%emt 0:00:46]} Qf8 {[%emt 0:01:51]} 32. Qxc6 {[%emt 0:00:45]} h5 {[%emt 0:01:28]} 33. Qc7 {[%emt 0:00:47]} Rg8 {[%emt 0:01:02]} 34. Nf5 {[%emt 0:01:00]} hxg4 {[%emt 0:00:47]} 35. Rd7 {[%emt 0:00:14]} Rg6 {[%emt 0:01:26]} 36. Rd8 {[%emt 0:00:06]} 1-0

[Event "Reykjavik Open 2025"]
[Site "Reykjavik"]
[Date "2025.04.09"]
[Round "1.36"]
[White "Gunnarsson, Jon Viktor"]
[Black "Lohr, Matthias"]
[Result "1-0"]
[Annotator "ChessBase"]
[ECO "C55"]
[WhiteElo "2439"]
[BlackElo "2092"]
[PlyCount "71"]
[EventDate "2025.04.09"]
[EventType "swiss"]
[EventCountry "ISL"]
[SourceTitle "playchess.com"]
[Source "ChessBase"]
[SourceQuality "1"]
[TimeControl "40/5400+30:1800+30"]

1. e4 {[%emt 0:00:04]} e5 {[%emt 0:00:06]} 2. Nf3 {[%emt 0:00:20]} Nc6 {[%emt 0:00:02]} 3. Bc4 {[%emt 0:00:40]} Nf6 {[%emt 0:00:09]} 4. d3 {[%emt 0:00:21]} h6 {[%emt 0:00:04]} 5. Nc3 {[%emt 0:05:25]} d6 {[%emt 0:01:56]} 6. a3 {[%emt 0:04:13]} g6 {[%emt 0:03:38]} 7. Be3 {[%emt 0:02:29]} Bg7 {[%emt 0:00:50]} 8. h3 {[%emt 0:00:45]} Na5 {[%emt 0:17:00]} 9. Ba2 {[%emt 0:03:31]} Be6 {[%emt 0:05:46]} 10. Nd5 {[%emt 0:06:03]} Nd7 {[%emt 0:05:23]} 11. O-O {[%emt 0:17:32]} b5 {[%emt 0:32:20]} 12. b4 {[%emt 0:09:54]} Nb7 {[%emt 0:00:20]} 13. c4 {[%emt 0:07:53]} bxc4 {[%emt 0:06:33]} 14. Bxc4 {[%emt 0:01:56]} c6 {[%emt 0:01:30]} 15. Nc3 {[%emt 0:03:46]} O-O {[%emt 0:00:55]} 16. Ba6 {[%emt 0:02:17]} Qb8 {[%emt 0:07:03]} 17. d4 {[%emt 0:08:16]} Nb6 {[%emt 0:00:17]} 18. dxe5 {[%emt 0:03:15]} Bc4 {[%emt 0:02:28]} 19. Bxc4 {[%emt 0:04:16]} Nxc4 {[%emt 0:00:02]} 20. Qb3 {[%emt 0:02:50]} Nxe3 {[%emt 0:01:46]} 21. fxe3 {[%emt 0:00:04]} Bxe5 {[%emt 0:03:01]} 22. Nxe5 {[%emt 0:00:35]} dxe5 {[%emt 0:00:02]} 23. Rf6 {[%emt 0:00:35]} Kg7 {[%emt 0:00:48]} 24. Raf1 {[%emt 0:01:00]} Qc7 {[%emt 0:00:28]} 25. Qc4 {[%emt 0:02:01]} Rac8 {[%emt 0:00:55]} 26. h4 {[%emt 0:06:23]} h5 {[%emt 0:00:55]} 27. Kh2 {[%emt 0:02:13]} Qe7 {[%emt 0:06:19]} 28. Rxc6 {[%emt 0:01:31]} Qxh4+ {[%emt 0:00:45]} 29. Kg1 {[%emt 0:00:02]} Rcd8 {[%emt 0:01:31]} 30. Nb5 {[%emt 0:03:24]} Qg5 {[%emt 0:00:43]} 31. Rc7 {[%emt 0:01:03]} Qxe3+ {[%emt 0:00:29]} 32. Kh1 {[%emt 0:00:06]} Nd6 {[%emt 0:01:10]} 33. Nxd6 {[%emt 0:00:23]} Rxd6 {[%emt 0:00:02]} 34. Rcxf7+ {[%emt 0:00:11]} Rxf7 {[%emt 0:00:23]} 35. Qxf7+ {[%emt 0:00:04]} Kh6 {[%emt 0:00:40]} 36. Qf8+ {[%emt 0:00:06]} 1-0

[Event "Reykjavik Open 2025"]
[Site "Reykjavik"]
[Date "2025.04.09"]
[Round "1.37"]
[White "Blanchet, Mathieu"]
[Black "Licznerski, Lukasz"]
[Result "0-1"]
[Annotator "RC"]
[ECO "A57"]
[WhiteElo "2091"]
[BlackElo "2436"]
[PlyCount "132"]
[EventDate "2025.04.09"]
[EventType "swiss"]
[EventCountry "ISL"]
[SourceTitle "playchess.com"]
[Source "ChessBase"]
[SourceQuality "1"]
[TimeControl "40/5400+30:1800+30"]

1. d4 {[%emt 0:00:02]} Nf6 {[%emt 0:00:02]} 2. c4 {[%emt 0:00:09]} c5 {[%emt 0:01:19]} 3. d5 {[%emt 0:00:08]} b5 {[%emt 0:00:03]} 4. Qc2 {[%emt 0:00:08]} bxc4 {[%emt 0:01:13]} 5. e4 {[%emt 0:00:36]} d6 {[%emt 0:00:07]} 6. Bxc4 {[%emt 0:00:30]} g6 {[%emt 0:00:12]} 7. Nf3 {[%emt 0:00:07]} Bg7 {[%emt 0:00:09]} 8. O-O {[%emt 0:00:17]} O-O {[%emt 0:00:05]} 9. Nc3 {[%emt 0:00:04]} Nbd7 {[%emt 0:10:41]} 10. h3 {[%emt 0:00:08]} Ne8 {[%emt 0:08:27]} 11. Re1 {[%emt 0:12:28]} Nc7 {[%emt 0:01:37]} 12. Bf4 {[%emt 0:07:44]} f6 {[%emt 0:11:12]} 13. Qd2 {[%emt 0:07:38]} a5 {[%emt 0:08:32]} 14. a4 {[%emt 0:07:09]} Ba6 {[%emt 0:01:30]} 15. Bxa6 {[%emt 0:02:31]} Rxa6 {[%emt 0:00:20]} 16. Qe2 {[%emt 0:11:33]} Rb6 {[%emt 0:01:04]} 17. Bc1 {[%emt 0:05:51]} Qa8 {[%emt 0:03:09]} 18. Nd2 {[%emt 0:01:20]} Qa6 {[%emt 0:01:52]} 19. Qxa6 {[%emt 0:05:14]} Rxa6 {[%emt 0:00:06]} 20. Nb5 {[%emt 0:05:51]} Nxb5 {[%emt 0:02:44]} 21. axb5 {[%emt 0:00:49]} Raa8 {[%emt 0:00:02]} 22. Nc4 {[%emt 0:00:33]} a4 {[%emt 0:01:16]} 23. Bd2 {[%emt 0:11:38]} Rfb8 {[%emt 0:01:18]} 24. Na3 {[%emt 0:00:08]} Ra7 {[%emt 0:06:50]} 25. Bc3 {[%emt 0:01:37]} Nb6 {[%emt 0:01:06]} 26. Rad1 {[%emt 0:07:12]} Na8 {[%emt 0:03:14]} 27. f4 {[%emt 0:00:11]} Nc7 {[%emt 0:00:20]} 28. b6 {[%emt 0:02:50]} Rxb6 {[%emt 0:00:07]} 29. Nc4 {[%emt 0:00:03]} Rba6 {[%emt 0:07:06]} 30. e5 {[%emt 0:01:01]} Nb5 {[%emt 0:00:04]} 31. exd6 {[%emt 0:03:09]} exd6 {[%emt 0:03:32]} 32. Bd2 {[%emt 0:04:28]} a3 {[%emt 0:05:54]} 33. bxa3 {[%emt 0:00:39]} Nxa3 {[%emt 0:00:11]} 34. Nxa3 {[%emt 0:01:31]} Rxa3 {[%emt 0:00:04]} 35. Bc1 {[%emt 0:02:01]} Ra1 {[%emt 0:03:39]} 36. f5 {[%emt 0:00:21]} gxf5 {[%emt 0:03:24]} 37. Bf4 {[%emt 0:00:33]} Rxd1 {[%emt 0:00:07]} 38. Rxd1 {[%emt 0:00:01]} Bf8 {[%emt 0:00:09]} 39. Kf2 {[%emt 0:01:05]} Ra4 {[%emt 0:00:46]} 40. Kf3 {[%emt 0:00:35]} Kf7 {[%emt 0:02:18]} 41. Rd3 {[%emt 0:04:51]} Kg6 {[%emt 0:01:42]} 42. g3 {[%emt 0:04:48]} h5 {[%emt 0:05:04]} 43. h4 {[%emt 0:02:02]} Rb4 {[%emt 0:05:32]} 44. Bd2 {[%emt 0:19:32]} Rb6 {[%emt 0:01:09]} 45. Ra3 {[%emt 0:01:22]} c4 {[%emt 0:08:48]} 46. Ra8 {[%emt 0:00:25]} Rb3+ {[%emt 0:00:23]} 47. Ke2 {[%emt 0:00:35]} Bh6 {[%emt 0:01:14]} 48. Bxh6 {[%emt 0:00:24]} Kxh6 {[%emt 0:00:02]} 49. Rc8 {[%emt 0:00:34]} Rc3 {[%emt 0:05:23]} 50. Rc6 {[%emt 0:00:26]} Kg6 {[%emt 0:00:48]} 51. Rxd6 {[%emt 0:00:22]} Rxg3 {[%emt 0:00:02]} 52. Rc6 {[%emt 0:00:44]} Rg4 {[%emt 0:01:08]} 53. Rc8 {[%emt 0:00:30]} Rxh4 {[%emt 0:00:19]} 54. d6 {[%emt 0:00:19]} Rd4 {[%emt 0:00:11]} 55. d7 {[%emt 0:00:37]} Rxd7 {[%emt 0:00:02]} 56. Rxc4 {[%emt 0:00:01]} Kg5 {[%emt 0:00:30]} 57. Kf3 {[%emt 0:00:10]} Rd3+ {[%emt 0:00:18]} 58. Kg2 {[%emt 0:00:07]} f4 {[%emt 0:00:29]} 59. Rc8 {[%emt 0:00:20]} Rg3+ {[%emt 0:00:52]} 60. Kf2 {[%emt 0:00:36]} h4 {[%emt 0:04:25]} 61. Rg8+ {[%emt 0:00:23]} Kf5 {[%emt 0:00:02]} 62. Rh8 {[%emt 0:00:12]} h3 {[%emt 0:00:22]} 63. Rh5+ {[%emt 0:00:32]} Kg4 {[%emt 0:00:27]} 64. Rh8 {[%emt 0:00:23]} Rg2+ {[%emt 0:00:37]} 65. Kf1 {[%emt 0:00:04]} f3 {[%emt 0:00:49]} 66. Rh7 {[%emt 0:00:30]} h2 {[%emt 0:00:35]} 0-1

[Event "Reykjavik Open 2025"]
[Site "Reykjavik"]
[Date "2025.04.09"]
[Round "1.38"]
[White "Prraneeth Vuppala"]
[Black "Tessiore, Luca G"]
[Result "1-0"]
[Annotator "ChessBase"]
[ECO "C88"]
[WhiteElo "2433"]
[BlackElo "2087"]
[PlyCount "81"]
[EventDate "2025.04.09"]
[EventType "swiss"]
[EventCountry "ISL"]
[SourceTitle "playchess.com"]
[Source "ChessBase"]
[SourceQuality "1"]
[TimeControl "40/5400+30:1800+30"]

1. e4 {[%emt 0:00:11]} e5 {[%emt 0:00:04]} 2. Nf3 {[%emt 0:00:06]} Nc6 {[%emt 0:00:04]} 3. Bb5 {[%emt 0:00:25]} a6 {[%emt 0:00:05]} 4. Ba4 {[%emt 0:00:09]} Nf6 {[%emt 0:03:02]} 5. O-O {[%emt 0:02:59]} Be7 {[%emt 0:00:00]} 6. Re1 {[%emt 0:01:32]} b5 {[%emt 0:00:00]} 7. Bb3 {[%emt 0:00:04]} O-O {[%emt 0:00:00]} 8. a4 {[%emt 0:01:15]} Bb7 {[%emt 0:00:00]} 9. Nc3 {[%emt 0:07:11]} b4 {[%emt 0:00:00]} 10. Nd5 {[%emt 0:00:46]} d6 {[%emt 0:01:04]} 11. a5 {[%emt 0:02:57]} Nd4 {[%emt 0:04:30]} 12. Nxd4 {[%emt 0:06:58]} exd4 {[%emt 0:00:17]} 13. Nxe7+ {[%emt 0:00:37]} Qxe7 {[%emt 0:00:06]} 14. d3 {[%emt 0:00:03]} Nd7 {[%emt 0:04:05]} 15. Qg4 {[%emt 0:03:45]} Kh8 {[%emt 0:12:52]} 16. Bg5 {[%emt 0:01:05]} f6 {[%emt 0:00:31]} 17. Bd2 {[%emt 0:00:23]} c5 {[%emt 0:00:07]} 18. f4 {[%emt 0:03:13]} Rfe8 {[%emt 0:03:35]} 19. Rf1 {[%emt 0:03:51]} Nf8 {[%emt 0:06:00]} 20. Rae1 {[%emt 0:02:01]} Qd7 {[%emt 0:06:17]} 21. Qh5 {[%emt 0:08:41]} Rad8 {[%emt 0:10:24]} 22. e5 {[%emt 0:12:46]} Qc6 {[%emt 0:01:55]} 23. Rf2 {[%emt 0:01:33]} d5 {[%emt 0:02:35]} 24. Qf7 {[%emt 0:13:32]} fxe5 {[%emt 0:20:37]} 25. Rxe5 {[%emt 0:02:44]} Qd7 {[%emt 0:01:40]} 26. Bxd5 {[%emt 0:02:29]} Bxd5 {[%emt 0:05:20]} 27. Qxd7 {[%emt 0:00:08]} Nxd7 {[%emt 0:00:03]} 28. Rxd5 {[%emt 0:00:05]} Re7 {[%emt 0:05:01]} 29. Rd6 {[%emt 0:03:39]} Ra8 {[%emt 0:00:06]} 30. Kf1 {[%emt 0:01:25]} Kg8 {[%emt 0:00:38]} 31. Re2 {[%emt 0:00:22]} Kf7 {[%emt 0:00:06]} 32. Rxe7+ {[%emt 0:00:51]} Kxe7 {[%emt 0:00:07]} 33. Rc6 {[%emt 0:00:05]} g6 {[%emt 0:01:18]} 34. Be1 {[%emt 0:01:55]} Kf7 {[%emt 0:00:32]} 35. b3 {[%emt 0:02:02]} Ke7 {[%emt 0:00:17]} 36. Bh4+ {[%emt 0:00:21]} Kf7 {[%emt 0:00:10]} 37. Rd6 {[%emt 0:02:03]} Ra7 {[%emt 0:00:46]} 38. g4 {[%emt 0:02:02]} Kg7 {[%emt 0:01:05]} 39. Kf2 {[%emt 0:02:06]} Nb8 {[%emt 0:01:02]} 40. Bf6+ {[%emt 0:00:51]} Kf7 {[%emt 0:00:09]} 41. Be5 {[%emt 0:30:28]} 1-0

[Event "Reykjavik Open 2025"]
[Site "Reykjavik"]
[Date "2025.04.09"]
[Round "1.39"]
[White "Weidenhoefer, Max"]
[Black "Hagner, Bennet"]
[Result "1/2-1/2"]
[Annotator "ChessBase"]
[ECO "C28"]
[WhiteElo "2085"]
[BlackElo "2430"]
[PlyCount "77"]
[EventDate "2025.04.09"]
[EventType "swiss"]
[EventCountry "ISL"]
[SourceTitle "playchess.com"]
[Source "ChessBase"]
[SourceQuality "1"]
[TimeControl "40/5400+30:1800+30"]

1. e4 {[%emt 0:00:03]} e5 {[%emt 0:00:06]} 2. Bc4 {[%emt 0:00:15]} Nf6 {[%emt 0:00:44]} 3. d3 {[%emt 0:00:10]} Nc6 {[%emt 0:00:22]} 4. Nc3 {[%emt 0:00:15]} Bc5 {[%emt 0:00:12]} 5. h3 {[%emt 0:00:17]} a6 {[%emt 0:08:15]} 6. Nge2 {[%emt 0:04:47]} b5 {[%emt 0:04:31]} 7. Bb3 {[%emt 0:01:01]} Na5 {[%emt 0:00:06]} 8. O-O {[%emt 0:04:42]} O-O {[%emt 0:00:21]} 9. Ng3 {[%emt 0:02:31]} b4 {[%emt 0:13:41]} 10. Nb1 {[%emt 0:07:27]} Nxb3 {[%emt 0:01:01]} 11. axb3 {[%emt 0:00:09]} h6 {[%emt 0:03:41]} 12. Qf3 {[%emt 0:10:09]} d5 {[%emt 0:02:49]} 13. Be3 {[%emt 0:08:05]} Bxe3 {[%emt 0:05:26]} 14. Qxe3 {[%emt 0:01:42]} a5 {[%emt 0:08:47]} 15. Nd2 {[%emt 0:10:04]} Qd6 {[%emt 0:00:02]} 16. f4 {[%emt 0:07:47]} Re8 {[%emt 0:10:21]} 17. fxe5 {[%emt 0:05:48]} Qxe5 {[%emt 0:00:11]} 18. d4 {[%emt 0:02:25]} Qe6 {[%emt 0:00:10]} 19. e5 {[%emt 0:01:00]} Nd7 {[%emt 0:08:58]} 20. Nh5 {[%emt 0:06:23]} c5 {[%emt 0:02:20]} 21. c3 {[%emt 0:01:43]} cxd4 {[%emt 0:06:48]} 22. cxd4 {[%emt 0:00:28]} Ra6 {[%emt 0:07:59]} 23. Rf4 {[%emt 0:13:09]} Qg6 {[%emt 0:03:44]} 24. Qf3 {[%emt 0:02:40]} Nf8 {[%emt 0:00:05]} 25. Rf1 {[%emt 0:02:34]} Be6 {[%emt 0:07:41]} 26. Rf6 {[%emt 0:01:04]} gxf6 {[%emt 0:01:57]} 27. Nxf6+ {[%emt 0:00:03]} Kh8 {[%emt 0:00:03]} 28. Nxe8 {[%emt 0:00:10]} Rc6 {[%emt 0:00:26]} 29. Qe3 {[%emt 0:02:53]} Nh7 {[%emt 0:00:22]} 30. Nf6 {[%emt 0:01:13]} Qg5 {[%emt 0:01:55]} 31. Qd3 {[%emt 0:00:47]} Nxf6 {[%emt 0:00:19]} 32. Rxf6 {[%emt 0:02:51]} Bxh3 {[%emt 0:00:37]} 33. Qxh3 {[%emt 0:01:33]} Rxf6 {[%emt 0:00:01]} 34. exf6 {[%emt 0:00:28]} Qxd2 {[%emt 0:00:02]} 35. Qc8+ {[%emt 0:00:07]} Kh7 {[%emt 0:00:03]} 36. Qf5+ {[%emt 0:00:06]} Kh8 {[%emt 0:00:18]} 37. Qc8+ {[%emt 0:01:31]} Kh7 {[%emt 0:00:15]} 38. Qf5+ {[%emt 0:00:13]} Kh8 {[%emt 0:00:00]} 39. Qc8+ {[%emt 0:00:30]} 1/2-1/2